bitfinex-derivatives/quotes_ETHF0:USTF0_20251216
["timestamp","ask_amount","ask_price","bid_price","bid_amount"]
[1765857770140,1.57496289,2935.6,2935.5,0.8092]
[1765857770533,1.57496289,2935.6,2935.1,3.2078]
[1765857770934,3.40437072,2935.6,2935.0,0.4483]
[1765857771242,1.82940783,2935.5,2935.0,0.4483]
[1765857771832,0.8016,2935.1,2935.0,2.0083]
[1765857772030,1.82940783,2935.5,2935.0,2.0083]
[1765857772233,1.82940783,2935.4,2935.0,2.0083]
[1765857772444,1.5708,2934.9,2934.8,4.7678]
[1765857772641,1.5708,2934.9,2934.8,3.2078]
[1765857772939,3.40020783,2934.9,2934.8,3.2078]
[1765857773141,3.40020783,2934.9,2934.8,4.017]
[1765857773336,3.40020783,2934.9,2934.8,3.2078]
[1765857773536,1.5708,2934.6,2934.5,3.2103878]
[1765857774044,2.43921044,2934.8,2933.2,2.29419722]
[1765857774045,1.5708,2934.2,2934.1,3.2078]
[1765857774842,0.8016,2933.9,2933.8,4.7678]
[1765857775144,2.63257478,2933.9,2933.8,4.77091156]
[1765857777141,0.8016,2933.9,2933.8,1.56311156]
[1765857779046,1.81635488,2933.9,2933.8,1.56311156]
[1765857779241,2.84462714,2933.9,2933.8,1.56311156]
[1765857779847,2.84462714,2933.9,2933.8,4.77091156]
[1765857782055,1.01475488,2933.9,2933.8,4.77091156]
[1765857783042,1.86795488,2933.9,2933.8,1.56311156]
[1765857783648,2.79995488,2933.9,2933.8,0.00311156]
[1765857784054,8.4476372,2933.9,2933.8,0.00311156]
[1765857784346,6.00775488,2933.9,2933.8,0.00311156]
[1765857784551,1.7852,2933.3,2933.2,5.07]
[1765857784749,2.79995488,2933.3,2933.2,5.46]
[1765857785144,1.01475488,2933.3,2933.2,5.46]
[1765857785651,1.82994615,2934.0,2933.9,1.8622]
[1765857785851,1.7852,2934.0,2933.9,0.9268]
[1765857786244,1.7852,2933.5,2933.4,3.2078]
[1765857786445,1.7852,2933.5,2933.4,4.1346]
[1765857786647,1.78857788,2933.5,2933.4,4.1346]
[1765857786846,2.30407788,2933.5,2933.4,3.2078]
[1765857787646,2.30407788,2933.5,2933.4,4.1346]
[1765857789056,2.30407788,2933.5,2933.4,5.07]
[1765857789255,0.85657788,2933.5,2933.4,5.07]
[1765857790761,0.00337788,2933.5,2933.4,5.07]
[1765857793055,2.30407788,2933.5,2933.4,4.1346]
[1765857793563,0.00337788,2933.5,2933.4,5.07]
[1765857794962,0.00510838,2934.1,2934.0,2.2262]
[1765857795152,0.85830838,2934.1,2934.0,2.2262]
[1765857795560,0.85830838,2934.1,2934.0,1.8622]
[1765857795965,0.86135994,2934.1,2934.0,1.8622]
[1765857797665,1.79335994,2934.1,2934.0,1.8622]
[1765857798065,0.86135994,2934.1,2934.0,1.8622]
[1765857798261,1.79335994,2934.1,2934.0,1.8622]
[1765857798865,1.79335994,2934.1,2933.5,0.364]
[1765857799066,1.79335994,2934.1,2934.0,0.9268]
[1765857799365,1.79335994,2934.1,2934.0,1.8622]
[1765857800465,0.00815994,2934.1,2934.0,2.3834]
[1765857801666,0.00815994,2934.1,2934.0,5.5912]
[1765857801963,3.08941073,2935.3,2934.0,5.5912]
[1765857801964,1.26037475,2935.3,2934.6,1.8622]
[1765857802174,3.04557475,2935.3,2934.5,0.5212]
[1765857802465,3.04557475,2935.3,2934.7,3.2078]
[1765857802660,1.7852,2935.3,2934.7,3.2078]
[1765857803056,1.7852,2935.3,2935.2,0.9268]
[1765857803263,0.86106767,2935.3,2935.2,1.8622]
[1765857803463,1.79306767,2935.3,2935.2,1.8622]
[1765857803658,0.86106767,2935.3,2935.2,1.8622]
[1765857803865,0.00786767,2935.3,2935.2,1.8622]
[1765857804068,1.79306767,2935.3,2935.2,0.9268]
[1765857804264,1.7852,2934.8,2934.7,0.00510838]
[1765857804463,1.7852,2934.8,2934.7,0.93190838]
[1765857804769,1.7852,2934.8,2934.7,1.86730838]
[1765857806068,4.993,2934.8,2934.7,0.00510838]
[1765857806368,1.7852,2934.8,2934.7,0.00510838]
[1765857808776,4.993,2935.2,2935.1,0.9268]
[1765857809071,1.7852,2935.2,2935.1,0.9268]
[1765857809260,1.7852,2935.2,2935.1,1.8622]
[1765857809659,0.8532,2935.2,2935.1,1.8622]
[1765857809858,0.00786767,2935.3,2935.2,1.8622]
[1765857810469,0.00786767,2935.3,2935.0,0.9268]
[1765857810666,1.79306767,2935.3,2935.2,0.9268]
[1765857810967,0.86106767,2935.3,2935.2,1.8622]
[1765857811363,0.00786767,2935.3,2935.2,1.8622]
[1765857811676,0.86106767,2935.3,2935.2,1.8622]
[1765857811865,0.00786767,2935.3,2935.2,1.8622]
[1765857812567,0.86106767,2935.3,2935.2,1.8622]
[1765857813270,0.00786767,2935.3,2935.2,1.8622]
[1765857813666,0.85246767,2935.3,2935.2,1.8622]
[1765857814567,0.00786767,2935.3,2935.2,1.8622]
[1765857815076,0.85246767,2935.3,2935.2,1.8622]
[1765857815278,1.73416767,2935.3,2935.2,0.9268]
[1765857815477,0.8446,2935.0,2934.9,4.8585]
[1765857815779,1.73416767,2935.3,2935.2,0.8378]
[1765857816878,1.73416767,2935.3,2935.2,1.6507]
[1765857819575,0.85246767,2935.3,2935.2,1.6507]
[1765857819781,0.00786767,2935.3,2935.2,1.6507]
[1765857820080,0.00786767,2935.3,2935.2,4.8585]
[1765857822177,0.00786767,2935.3,2935.2,45.6585]
[1765857825470,2.2547,2936.0,2935.9,1.6507]
[1765857825676,5.10442,2936.2,2936.1,1.6507]
[1765857825871,3.2078,2936.2,2936.1,1.6507]
[1765857826178,4.0524,2936.2,2936.1,1.6507]
[1765857826376,4.9341,2936.2,2936.1,1.6507]
[1765857826576,4.93693676,2936.2,2936.1,1.65482912]
[1765857826774,4.93693676,2936.2,2936.1,0.00412912]
[1765857828180,1.7263,2935.3,2934.7,0.00510838]
[1765857828378,1.7263,2934.8,2934.7,1.65580838]
[1765857828573,1.7263,2934.8,2934.7,0.00510838]
[1765857829179,1.7263,2934.8,2934.7,0.84601906]
[1765857829379,1.7263,2934.8,2934.7,0.00821906]
[1765857831682,2.2547,2934.0,2933.9,0.8378]
[1765857831890,5.4625,2934.0,2933.1,3.2078]
[1765857832087,5.4625,2934.0,2933.1,5.4478]
[1765857832384,5.4625,2934.0,2933.2,40.8]
[1765857832589,5.4625,2934.0,2933.2,41.99]
[1765857832774,0.00510838,2933.9,2933.3,0.00510838]
[1765857832978,0.00510838,2933.9,2933.3,0.16510838]
[1765857833589,0.00510838,2933.9,2933.4,3.2078]
[1765857833885,1.73140838,2933.9,2933.8,0.8378]
[1765857835278,0.00510838,2933.9,2933.8,1.6507]
[1765857841183,1.7263,2934.1,2934.0,0.8378]
[1765857841385,2.2547,2934.0,2933.9,0.8129]
[1765857841586,2.2547,2934.0,2933.9,1.6507]
[1765857841891,2.2547,2934.0,2933.9,0.8129]
[1765857842293,2.25880037,2934.0,2933.9,0.8129]
[1765857843101,1.6636,2933.8,2933.7,3.2078]
[1765857844695,1.6636,2933.8,2933.7,4.0165]
[1765857845599,1.6636,2933.8,2933.7,3.2078]
[1765857846695,1.6636,2933.8,2933.7,4.0165]
[1765857847794,1.6636,2933.8,2933.7,3.2078]
[1765857847998,2.0325,2933.5,2933.4,4.754]
[1765857848201,1.74616,2933.9,2933.8,0.8087]
[1765857848395,1.74616,2933.9,2933.4,3.2078]
[1765857849699,1.74616,2933.9,2933.8,0.8087]
[1765857849898,0.7567,2933.6,2933.5,1.8991]
[1765857850301,1.74616,2933.9,2933.8,1.5462]
[1765857850895,0.98946,2933.9,2933.5,0.3529]
[1765857851103,1.5757,2933.6,2933.5,1.5462]
[1765857854404,0.17046,2933.9,2933.4,1.5462]
[1765857854405,2.0325,2933.5,2933.4,1.5462]
[1765857854607,1.5757,2933.4,2933.3,0.00510838]
[1765857855912,1.74618,2933.4,2933.3,0.00510838]
[1765857856812,7.74618,2933.4,2933.3,0.00510838]
[1765857857008,1.74618,2933.4,2933.3,0.8104305]
[1765857857309,1.74618,2933.4,2933.3,0.0017305]
[1765857857515,4.95398,2933.4,2933.3,0.0017305]
[1765857859811,4.95398,2933.4,2933.3,0.8104305]
[1765857860007,1.5757,2933.4,2933.3,1.5479305]
[1765857860214,4.7835,2933.8,2933.7,0.8087]
[1765857860512,4.7835,2933.8,2933.3,0.0017305]
[1765857860713,0.7567,2933.4,2933.3,1.5479305]
[1765857860916,4.7835,2933.8,2933.7,0.8087]
[1765857861120,4.7835,2933.8,2933.7,1.5462]
[1765857861918,4.7835,2933.8,2933.5,0.4483]
[1765857861919,1.5757,2933.6,2933.5,0.8087]
[1765857862317,1.5757,2933.6,2933.5,1.5462]
[1765857863626,1.5757,2933.4,2933.3,1.5479305]
[1765857865226,0.7567,2933.4,2933.3,1.5479305]
[1765857866222,1.5757,2933.4,2933.3,1.5479305]
[1765857866422,0.7567,2933.4,2933.3,1.5479305]
[1765857866824,1.74616,2933.9,2933.8,0.8087]
[1765857867024,1.74616,2933.9,2933.3,0.0017305]
[1765857867225,0.7567,2933.4,2933.3,1.5479305]
[1765857869025,1.5757,2933.9,2933.8,1.5462]
[1765857869232,0.00410037,2934.0,2933.9,1.5462]
[1765857869617,1.5757,2933.8,2933.7,40.8]
[1765857869829,1.5757,2933.6,2933.5,4.754]
[1765857870222,0.7567,2933.6,2933.5,4.754]
[1765857870425,0.76080037,2934.0,2933.9,1.5462]
[1765857870626,0.76080037,2934.0,2933.9,4.754]
[1765857870830,0.00410037,2934.0,2933.9,4.754]
[1765857872027,1.89610037,2934.0,2933.9,3.2078]
[1765857872631,1.89610037,2934.0,2933.9,4.6735]
[1765857873335,0.76080037,2934.0,2933.9,4.6735]
[1765857874037,1.51350037,2934.0,2933.9,4.6735]
[1765857875134,1.51350037,2934.0,2933.5,0.4483]
[1765857875135,0.17048,2933.4,2933.3,0.0017305]
[1765857875439,3.37828,2933.4,2933.3,0.0017305]
[1765857877037,3.65678,2933.4,2933.2,0.00240523]
[1765857877229,0.2785,2932.6,2932.5,1.6722]
[1765857877432,3.4863,2932.6,2932.5,1.6722]
[1765857878232,3.4863,2932.6,2932.5,1.67502843]
[1765857879438,0.2785,2932.6,2932.5,1.67502843]
[1765857880734,0.5397,2932.6,2932.5,1.67502843]
[1765857881140,0.2785,2932.6,2932.5,1.67502843]
[1765857883044,3.6769,2932.9,2932.8,0.7634]
[1765857883538,0.2257,2932.6,2932.5,1.67502843]
[1765857884642,0.4514,2932.6,2932.5,1.67502843]
[1765857884849,3.6592,2932.6,2932.5,1.67502843]
[1765857886250,3.4335,2932.6,2932.5,1.67502843]
[1765857886449,0.2257,2932.6,2932.5,1.67502843]
[1765857887444,0.4251,2932.6,2932.5,1.67502843]
[1765857887846,0.2257,2932.6,2932.5,1.67502843]
[1765857888046,0.4077,2932.6,2932.5,1.67502843]
[1765857888351,0.2257,2932.6,2932.5,1.67502843]
[1765857890851,5.0898031,2932.9,2932.8,0.7634]
[1765857891855,4.7431031,2932.9,2932.5,0.00282843]
[1765857892049,0.46574,2932.4,2932.3,1.47080838]
[1765857892650,0.1476,2932.4,2932.3,1.47080838]
[1765857893059,3.50000838,2932.6,2932.5,1.9237]
[1765857894663,0.00510838,2932.6,2932.5,3.4590031]
[1765857895659,4.9983031,2933.2,2933.1,1.4657]
[1765857895861,3.3354,2933.2,2933.1,1.4657]
[1765857896161,3.463,2933.2,2933.1,1.4657]
[1765857896763,3.2078,2933.2,2933.1,1.4657]
[1765857898655,3.3269,2933.2,2933.1,1.4657]
[1765857898854,3.2078,2933.2,2933.1,1.4657]
[1765857899563,3.3109,2933.2,2933.1,1.4657]
[1765857900062,3.2078,2933.2,2933.1,1.4657]
[1765857900356,0.00510838,2933.4,2933.3,1.4657]
[1765857900562,0.00510838,2933.4,2933.3,3.0010031]
[1765857902162,0.00510838,2933.4,2933.3,1.4657]
[1765857902462,0.00510838,2933.4,2933.3,3.0010031]
[1765857905255,3.2078,2933.8,2933.7,1.5519]
[1765857905562,0.00410037,2934.0,2933.9,1.5519]
[1765857905764,0.00410037,2934.0,2933.9,3.0872031]
[1765857905966,0.00410037,2934.0,2933.9,6.2950031]
[1765857907568,0.00410037,2934.0,2933.9,4.7597]
[1765857907961,0.00410037,2934.0,2933.6,12.702]
[1765857907962,1.6068,2933.7,2933.6,3.2078]
[1765857908366,0.46850037,2934.0,2933.6,4.7597]
[1765857908568,2.07530037,2934.0,2933.9,0.7803]
[1765857908969,1.6068,2933.7,2933.6,4.7597]
[1765857914974,1.6068,2933.7,2933.6,1.5519]
[1765857915872,1.6068,2933.7,2933.6,0.7803]
[1765857916373,1.6068,2933.1,2933.0,5.2177]
[1765857917273,2.24168,2933.5,2933.0,3.6658]
[1765857918874,2.24168,2933.5,2933.4,0.7803]
[1765857919373,1.6068,2933.5,2933.4,1.5519]
[1765857920576,0.8233,2933.1,2933.0,5.2177]
[1765857921181,1.6068,2933.1,2933.0,3.2078]
[1765857921774,1.6068,2933.1,2933.0,4.7597]
[1765857922277,1.77729,2933.3,2933.2,1.5519]
[1765857923786,2.0712,2933.5,2933.4,1.5519]
[1765857923976,1.6068,2933.5,2933.4,1.5519]
[1765857924176,0.8233,2933.5,2933.4,1.5519]
[1765857924783,0.8233,2933.6,2933.5,2.0186]
[1765857924983,4.98505,2933.9,2933.8,1.5519]
[1765857925181,4.98505,2933.9,2933.8,0.7803]
[1765857925478,0.4644,2933.5,2933.0,3.6745]
[1765857925684,2.0712,2933.5,2933.4,0.7803]
[1765857926086,2.0712,2933.5,2933.4,1.5519]
[1765857926585,1.77726,2933.8,2933.7,1.5519]
[1765857926781,0.99376,2933.8,2933.7,1.5519]
[1765857926982,1.6068,2933.8,2933.7,1.5519]
[1765857927382,1.6068,2933.8,2933.7,0.7803]
[1765857927583,1.6068,2933.6,2933.0,3.6745]
[1765857927883,2.0712,2933.5,2933.4,0.7803]
[1765857928479,0.8233,2933.1,2933.0,5.2264]
[1765857928680,0.8233,2933.1,2933.0,46.0264]
[1765857929480,0.4644,2933.5,2933.0,46.0264]
[1765857929885,2.0712,2933.5,2933.4,0.7803]
[1765857930283,2.0712,2933.5,2933.0,44.4745]
[1765857930284,0.8233,2933.1,2933.0,44.4745]
[1765857930480,2.0712,2933.5,2933.4,0.7803]
[1765857931584,2.0712,2933.5,2933.0,41.2667]
[1765857931986,2.0712,2933.5,2933.4,0.7803]
[1765857932581,2.0712,2933.5,2933.4,1.6073]
[1765857932782,2.0712,2933.5,2933.4,0.7803]
[1765857933184,2.0712,2933.5,2933.0,41.2667]
[1765857933480,0.4644,2933.5,2933.0,41.2667]
[1765857933983,2.1114,2933.5,2933.4,0.8665]
[1765857934285,2.1114,2933.5,2933.0,41.2667]
[1765857934286,1.647,2933.1,2933.0,1.6935]
[1765857934488,1.647,2933.1,2933.0,0.8665]
[1765857934788,1.647,2933.1,2933.0,1.6935]
[1765857935290,1.647,2933.1,2933.0,0.8665]
[1765857935491,0.63488,2933.5,2932.7,4.9013]
[1765857935492,1.647,2932.8,2932.7,4.9013]
[1765857936391,0.8187,2932.8,2932.7,4.9013]
[1765857936984,0.17049,2933.3,2932.7,4.9013]
[1765857937186,1.81749,2933.3,2933.2,0.8665]
[1765857937987,1.81749,2933.3,2932.7,3.2078]
[1765857939197,1.647,2932.8,2932.7,4.9013]
[1765857939593,3.2078,2933.6,2933.5,1.6935]
[1765857939797,4.8548,2933.6,2933.5,0.8665]
[1765857939992,1.647,2933.3,2933.2,1.6935]
[1765857940294,1.647,2933.1,2933.0,1.6935]
[1765857940500,1.647,2932.8,2932.7,4.9013]
[1765857940700,0.8187,2932.8,2932.7,4.9013]
[1765857944398,1.81749,2933.3,2933.2,1.6935]
[1765857947705,1.647,2932.8,2932.7,4.9013]
[1765857948801,1.647,2933.0,2932.9,1.6935]
[1765857948996,0.8187,2933.0,2932.9,1.6935]
[1765857949396,5.02529,2933.3,2933.2,1.6935]
[1765857950102,5.80749106,2933.7,2933.6,0.8665]
[1765857950300,4.8548,2933.7,2933.6,0.8665]
[1765857950809,1.647,2933.1,2933.0,0.8665]
[1765857951602,1.647,2933.1,2933.0,1.6935]
[1765857952210,0.4996,2935.0,2933.6,0.17047]
[1765857952405,0.4996,2935.0,2934.8,4.74235717]
[1765857952801,2.1466,2935.5,2935.4,0.0438]
[1765857953302,2.14928093,2935.5,2935.4,0.09038496]
[1765857953707,1.32098093,2935.5,2935.4,0.09038496]
[1765857953913,0.00268093,2935.5,2935.4,0.09038496]
[1765857954804,2.14928093,2935.5,2935.4,0.00278496]
[1765857955408,1.647,2935.1,2935.0,0.0225]
[1765857955710,1.647,2935.1,2935.0,3.2303]
[1765857956208,0.50228093,2935.5,2935.4,0.0262]
[1765857956209,1.32098093,2935.5,2935.4,0.0262]
[1765857956417,0.50228093,2935.5,2935.4,0.0290957]
[1765857956811,2.14928093,2935.5,2935.4,0.0159957]
[1765857957512,2.14928093,2935.5,2935.4,0.0290957]
[1765857957713,1.32098093,2935.5,2935.4,0.0290957]
[1765857958203,2.14928093,2935.5,2935.4,0.0290957]
[1765857959111,2.14928093,2935.5,2935.4,0.0028957]
[1765857961813,1.647,2935.3,2935.2,0.00510838]
[1765857962619,1.647,2935.3,2935.0,3.2078]
[1765857962620,2.0166,2935.1,2935.0,2.87935733]
[1765857962921,2.0166,2934.4,2933.8,1.664]
[1765857963217,2.0166,2934.4,2934.3,4.2076]
[1765857963422,2.0166,2934.4,2934.3,4.2276]
[1765857964520,2.5918,2935.0,2934.9,0.9998]
[1765857964918,2.5918,2935.0,2934.5,0.6117]
[1765857965320,2.0166,2934.6,2934.5,1.9554]
[1765857965723,1.039,2934.6,2934.5,1.9554]
[1765857967527,0.5752,2935.0,2934.5,2.5671]
[1765857967824,1.039,2934.6,2934.5,2.5671]
[1765857968713,2.0166,2934.6,2934.5,2.5671]
[1765857968911,2.0166,2934.6,2934.5,1.9554]
[1765857969318,1.039,2934.6,2934.5,1.9554]
[1765857970525,1.039,2934.6,2934.5,2.5671]
[1765857971628,2.5918,2935.0,2934.9,0.9998]
[1765857971925,2.0166,2935.1,2935.0,1.9554]
[1765857972719,2.0166,2934.7,2934.6,4.2076]
[1765857972921,2.0166,2934.7,2934.6,5.1632]
[1765857973425,2.0166,2935.0,2934.9,1.9554]
[1765857974025,1.039,2935.0,2934.9,1.9554]
[1765857974428,2.0166,2935.0,2934.9,1.9554]
[1765857974927,1.039,2935.0,2934.9,1.9554]
[1765857975124,2.0166,2935.0,2934.9,1.9554]
[1765857976124,2.5918,2935.0,2934.9,0.9998]
[1765857976427,2.0166,2934.7,2934.6,3.2078]
[1765857977424,0.5752,2934.5,2934.2,3.2078]
[1765857977725,2.0166,2934.3,2934.2,5.1632]
[1765857978221,2.0166,2934.3,2934.2,3.2078]
[1765857978421,2.0166,2934.3,2934.2,5.1632]
[1765857978624,1.039,2934.3,2934.2,5.1632]
[1765857980127,0.5752,2934.5,2934.2,5.1632]
[1765857980128,1.039,2934.5,2934.4,1.9554]
[1765857980320,5.2244,2934.9,2934.8,0.9998]
[1765857980620,4.2468,2934.9,2934.8,1.9554]
[1765857980931,2.5918,2934.5,2934.4,0.9998]
[1765857981225,2.5918,2934.5,2934.4,1.9554]
[1765857981419,2.0166,2934.2,2934.1,1.96050838]
[1765857984325,2.0166,2934.2,2933.9,3.2078]
[1765857984326,2.0166,2933.9,2933.8,7.24e-06]
[1765857984525,3.37825,2933.9,2933.0,2.5671]
[1765857984721,0.7728,2933.1,2933.0,2.5671]
[1765857985430,0.77707864,2933.1,2933.0,2.5713844]
[1765857986329,1.54987864,2933.1,2933.0,1.6157844]
[1765857987433,1.54987864,2933.1,2933.0,2.5713844]
[1765857988328,0.00427864,2933.1,2933.0,2.5713844]
[1765857990433,3.21290838,2933.3,2933.2,1.9554]
[1765857990839,3.2078,2933.7,2933.6,1.9554]
[1765857991029,4.2468,2933.7,2933.6,1.9554]
[1765857991338,2.1871,2933.1,2933.0,0.0042844]
[1765857991527,5.3949,2933.1,2933.0,0.0042844]
[1765857993133,2.1871,2933.1,2933.0,0.0042844]
[1765857993333,2.1871,2933.1,2933.0,1.3564844]
[1765857993838,0.00510838,2933.3,2933.2,2.7013]
[1765857994233,2.74190838,2933.3,2933.2,1.3522]
[1765857994628,2.7368,2933.1,2933.0,2.7055844]
[1765857994827,2.7368,2933.1,2933.0,0.0042844]
[1765857995029,2.7368,2933.1,2931.8,3.2078]
[1765857995030,2.7368,2931.9,2931.8,3.2078]
[1765857995233,0.8608,2932.0,2931.0,0.8297]
[1765857995234,2.7368,2931.6,2931.5,5.9091]
[1765857995438,2.7368,2931.6,2931.5,5.06]
[1765857996032,2.7368,2931.6,2930.5,0.94105]
[1765857996033,2.7368,2931.4,2931.3,0.00510838]
[1765857997138,2.7368,2931.4,2931.3,0.00771189]
[1765857998037,0.00273836,2931.6,2931.5,2.7013]
[1765857998242,0.00273836,2931.6,2931.5,6.7388]
[1765857999143,0.00273836,2931.6,2931.5,2.7013]
[1765857999342,1.34283836,2931.6,2931.5,2.7013]
[1765857999543,2.73953836,2931.6,2931.5,1.3522]
[1765857999942,1.34283836,2931.6,2931.5,2.7013]
[1765858000144,2.73953836,2931.6,2931.5,1.3522]
[1765858001345,2.73953836,2931.6,2931.5,2.7013]
[1765858001546,1.34283836,2931.6,2931.5,2.7013]
[1765858002549,0.00273836,2931.6,2931.5,2.7013]
[1765858003147,0.00273836,2931.6,2931.5,3.4603]
[1765858004346,0.00273836,2931.6,2931.5,11.43722607]
[1765858004647,0.00273836,2931.6,2931.5,9.61722607]
[1765858005145,0.00273836,2931.6,2931.5,7.3181]
[1765858006741,0.00273836,2931.6,2931.5,6.6681]
[1765858006937,2.73953836,2931.6,2931.5,5.9091]
[1765858007537,2.73953836,2931.6,2931.5,4.56]
[1765858008246,2.73953836,2931.6,2931.5,3.2078]
[1765858009644,2.73953836,2931.6,2931.5,4.56]
[1765858009848,2.73953836,2931.6,2931.5,5.9091]
[1765858010045,0.00273836,2931.6,2931.5,6.5711]
[1765858018755,0.00273836,2931.6,2931.5,9.2911]
[1765858018950,2.2009,2932.5,2932.4,1.3522]
[1765858019158,3.5976,2932.5,2932.4,1.3522]
[1765858019855,3.60080894,2932.5,2932.4,1.3522]
[1765858020255,2.7368,2932.1,2932.0,40.8]
[1765858020849,2.7368,2932.1,2932.0,2.7013]
[1765858021754,2.7368,2931.7,2931.6,1.3522]
[1765858022461,2.7368,2931.7,2931.6,2.7013]
[1765858023149,2.7368,2931.7,2931.5,3.2078]
[1765858023345,2.572,2931.4,2931.3,0.00771189]
[1765858023559,0.8608,2932.0,2931.4,2.5201]
[1765858023560,0.95787865,2931.5,2931.4,2.5201]
[1765858023860,2.25947865,2931.8,2931.7,2.5201]
[1765858024057,0.95787865,2932.1,2932.0,3.2831]
[1765858024260,3.21100894,2932.5,2932.4,2.5201]
[1765858025051,8.94e-06,2932.5,2932.4,4.4901]
[1765858025956,8.94e-06,2932.5,2932.4,2.8801]
[1765858026357,1.30160894,2932.5,2932.4,2.5201]
[1765858026659,8.94e-06,2932.5,2932.0,0.763]
[1765858026860,8.94e-06,2932.5,2932.1,3.2078]
[1765858027060,8.94e-06,2932.5,2932.1,5.5378]
[1765858027354,1.3016,2932.1,2932.0,3.2831]
[1765858027560,3.2078,2932.2,2932.1,2.5201]
[1765858028755,3.2078,2932.2,2932.0,0.763]
[1765858028756,5.7798,2932.2,2932.0,0.763]
[1765858028958,2.572,2932.1,2932.0,1.9898]
[1765858029660,2.572,2932.1,2932.0,0.763]
[1765858031558,2.572,2932.1,2932.0,1.9898]
[1765858032163,2.572,2932.1,2932.0,0.763]
[1765858033362,2.572,2932.1,2932.0,1.9898]
[1765858033562,2.572,2932.1,2932.0,3.2831]
[1765858033758,1.3016,2932.1,2932.0,3.2831]
[1765858033959,2.572,2931.4,2931.3,2.52781189]
[1765858034262,5.7798,2931.4,2931.3,2.52781189]
[1765858034655,5.7798,2931.4,2931.3,0.00771189]
[1765858036367,5.7798,2931.4,2931.3,1.23451189]
[1765858036368,4.5094,2931.4,2931.3,1.23451189]
[1765858036767,5.7798,2931.4,2931.3,0.00771189]
[1765858037265,4.5094,2931.4,2931.3,2.52781189]
[1765858037854,5.7798,2931.4,2931.3,1.23451189]
[1765858038653,4.5094,2931.4,2931.3,2.52781189]
[1765858039056,3.2078,2931.4,2931.3,2.52781189]
[1765858039268,4.5094,2932.0,2931.9,2.5201]
[1765858039463,3.2078,2932.0,2931.9,2.5201]
[1765858039960,4.5094,2932.0,2931.9,2.5201]
[1765858040560,5.7798,2932.0,2931.5,0.763]
[1765858040763,1.3016,2931.6,2931.5,3.2831]
[1765858041163,3.37835,2932.3,2932.2,1.2268]
[1765858041471,2.572,2932.1,2932.0,3.2831]
[1765858041766,2.572,2932.1,2932.0,0.763]
[1765858041966,2.572,2932.1,2931.5,3.9708]
[1765858042868,2.572,2932.1,2932.0,0.763]
[1765858043064,2.572,2932.1,2932.0,1.9898]
[1765858044270,1.3016,2932.1,2932.0,3.2831]
[1765858044872,2.572,2932.1,2932.0,0.763]
[1765858045172,2.572,2932.1,2932.0,1.9898]
[1765858045469,2.572,2932.1,2932.0,0.763]
[1765858048076,2.572,2931.6,2931.5,3.9708]
[1765858048877,2.74257,2932.0,2931.9,2.5201]
[1765858049171,1.47217,2932.0,2931.9,2.5201]
[1765858049575,2.74257,2932.0,2931.5,3.9708]
[1765858050979,2.74257,2932.0,2931.9,1.2268]
[1765858051181,2.74257,2932.0,2931.9,2.5201]
[1765858051380,3.2078,2932.3,2931.9,2.5201]
[1765858051575,5.7798,2932.3,2932.2,1.2268]
[1765858051782,4.5094,2932.3,2932.2,2.5201]
[1765858052373,3.2078,2932.3,2932.2,2.5201]
[1765858052773,3.2078,2932.3,2932.2,43.3201]
[1765858053680,8.94e-06,2932.5,2932.2,40.8]
[1765858054682,4.5117,2932.3,2932.2,40.8]
[1765858054883,8.94e-06,2932.5,2932.2,40.8]
[1765858055781,8.94e-06,2932.5,2932.0,0.763]
[1765858056278,8.94e-06,2932.5,2932.0,41.563]
[1765858058082,8.94e-06,2932.5,2932.0,43.223]
[1765858060990,8.94e-06,2932.5,2932.1,15.979]
[1765858061184,8.94e-06,2932.5,2932.1,18.619]
[1765858061585,8.94e-06,2932.5,2932.2,40.8]
[1765858062088,8.94e-06,2932.5,2932.1,15.979]
[1765858062289,8.94e-06,2932.5,2932.0,0.763]
[1765858062490,8.94e-06,2932.5,2932.1,47.081]
[1765858062789,8.94e-06,2932.5,2932.1,49.481]
[1765858063288,8.94e-06,2932.5,2932.1,47.081]
[1765858063688,8.94e-06,2932.5,2932.1,49.701]
[1765858063884,8.94e-06,2932.5,2932.1,49.601]
[1765858064486,8.94e-06,2932.5,2932.1,47.081]
[1765858065792,8.94e-06,2932.5,2932.2,15.968]
[1765858066790,0.17057,2931.9,2931.5,3.359]
[1765858066991,4.4843,2931.7,2931.6,2.596]
[1765858069290,1.2765,2931.7,2931.6,2.596]
[1765858070594,2.62157,2931.9,2931.8,2.596]
[1765858070796,1.39607,2931.9,2931.8,2.596]
[1765858071088,0.17057,2931.9,2931.8,2.596]
[1765858071294,4.4206,2932.0,2931.9,2.596]
[1765858071791,4.4206,2932.0,2931.5,0.763]
[1765858071792,5.6334,2932.0,2931.5,0.763]
[1765858073296,5.6082,2932.0,2931.9,2.596]
[1765858074096,4.4206,2932.0,2931.9,2.596]
[1765858074694,3.2078,2932.0,2931.9,2.596]
[1765858076095,3.2078,2932.3,2932.2,2.596]
[1765858076692,4.3579,2932.3,2932.2,2.596]
[1765858077997,3.2078,2932.3,2932.2,2.596]
[1765858079797,8.94e-06,2932.5,2932.1,3.2078]
[1765858079993,8.94e-06,2932.5,2932.1,5.7678]
[1765858080202,8.94e-06,2932.5,2932.1,3.2078]
[1765858080593,8.94e-06,2932.5,2932.2,40.8]
[1765858084994,1.3201,2932.3,2932.2,40.8]
[1765858085194,1.3201,2932.2,2932.1,5.8709]
[1765858085397,8.94e-06,2932.5,2932.1,5.5678]
[1765858085603,0.00510838,2932.7,2932.6,2.6631]
[1765858086498,0.00771896,2932.7,2932.6,2.6631]
[1765858087398,2.86538,2933.4,2933.3,2.6631]
[1765858087603,1.49058,2933.4,2933.3,2.6631]